bitfinex/quotes_BTCUSD_20241208
["timestamp","ask_amount","ask_price","bid_price","bid_amount"]
[1733677189974,0.45569438,99934.0,99933.0,0.002]
[1733677190693,0.45569438,99934.0,99933.0,0.001]
[1733677191190,0.22883383,99925.0,99924.0,0.08986796]
[1733677191388,0.22883383,99925.0,99921.0,0.08986796]
[1733677191618,0.180137,99924.0,99921.0,0.08986796]
[1733677191815,0.180137,99924.0,99907.0,0.510333]
[1733677191816,0.180142,99921.0,99920.0,0.09217267]
[1733677192049,0.22589004,99921.0,99920.0,0.09217267]
[1733677192222,0.35568887,99921.0,99920.0,0.09217267]
[1733677192832,0.35568887,99921.0,99920.0,0.00230471]
[1733677192983,0.35568887,99921.0,99920.0,0.00730471]
[1733677193185,0.35568887,99921.0,99920.0,0.09717267]
[1733677193386,0.35568887,99921.0,99920.0,0.10017267]
[1733677193638,0.35568887,99921.0,99920.0,0.14512274]
[1733677193856,0.35568887,99921.0,99920.0,0.34208282]
[1733677194406,0.35568887,99921.0,99920.0,0.01030471]
[1733677194815,0.35568887,99921.0,99920.0,0.47690251]
[1733677195001,0.35568887,99921.0,99920.0,0.1451204]
[1733677195195,0.35568887,99921.0,99920.0,0.34208273]
[1733677195439,0.35568887,99921.0,99920.0,0.1001832]
[1733677195645,0.35568887,99921.0,99920.0,0.01030471]
[1733677201071,0.35568887,99921.0,99920.0,0.1001832]
[1733677201690,0.27458887,99921.0,99920.0,0.1001832]
[1733677202450,0.09444687,99921.0,99920.0,0.01030471]
[1733677202685,0.09444687,99921.0,99920.0,0.14512244]
[1733677202916,0.09444687,99921.0,99920.0,0.01030471]
[1733677203152,0.09444687,99921.0,99920.0,0.14512223]
[1733677203391,0.09444687,99921.0,99920.0,0.34208648]
[1733677203607,0.04869883,99923.0,99920.0,0.34208648]
[1733677203889,0.04869883,99934.0,99921.0,0.51151324]
[1733677204111,0.04574804,99934.0,99932.0,0.13481035]
[1733677204502,0.04574804,99934.0,99933.0,0.33178177]
[1733677204503,0.09444687,99934.0,99933.0,0.33178177]
[1733677204749,0.09444687,99934.0,99933.0,0.13479871]
[1733677205240,0.09444687,99934.0,99933.0,0.33178177]
[1733677205473,0.09444687,99934.0,99933.0,0.13479705]
[1733677207561,0.04869883,99945.0,99934.0,0.0786]
[1733677207748,0.04869883,99949.0,99939.0,0.180109]
[1733677207977,0.09444687,99944.0,99939.0,0.64660782]
[1733677208257,0.04869883,99944.0,99939.0,0.51181774]
[1733677208761,0.09444687,99944.0,99939.0,0.51181774]
[1733677209008,0.04869883,99944.0,99939.0,0.51181774]
[1733677209220,0.09444687,99944.0,99939.0,0.51181774]
[1733677209450,0.09444687,99944.0,99939.0,0.6934914]
[1733677209934,0.09444687,99944.0,99939.0,0.6964914]
[1733677210177,0.09444687,99944.0,99939.0,0.6934914]
[1733677210413,0.09444687,99944.0,99939.0,0.6974914]
[1733677211397,0.09444687,99944.0,99939.0,0.5173824]
[1733677211643,0.04661384,99940.0,99939.0,0.14073963]
[1733677211886,0.09531267,99940.0,99939.0,0.006]
[1733677212131,0.19534218,99940.0,99939.0,0.006]
[1733677213356,0.49552218,99940.0,99939.0,0.006]
[1733677213608,0.49552218,99940.0,99939.0,0.004]
[1733677213914,0.49552218,99940.0,99923.0,0.08983398]
[1733677214110,0.10002951,99939.0,99923.0,0.08983398]
[1733677214367,0.180136,99925.0,99923.0,0.08983398]
[1733677214607,0.10002951,99939.0,99924.0,0.26996998]
[1733677214608,0.04869883,99931.0,99924.0,0.26996998]
[1733677214828,0.04869883,99933.0,99930.0,0.08983398]
[1733677215048,0.04869883,99933.0,99932.0,0.08985036]
[1733677215290,0.04869883,99933.0,99930.0,0.13473963]
[1733677215521,0.04869883,99933.0,99932.0,0.13473963]
[1733677215749,0.04869883,99933.0,99930.0,0.51134213]
[1733677215994,0.34592804,99939.0,99931.0,0.51179247]
[1733677216240,0.34592804,99939.0,99923.0,0.0497]
[1733677216241,0.30018,99939.0,99936.0,0.17969245]
[1733677216570,0.30018,99939.0,99938.0,0.17969245]
[1733677216806,0.30018,99939.0,99938.0,0.33166847]
[1733677217024,0.30018,99939.0,99938.0,0.51136092]
[1733677217466,0.30018,99939.0,99938.0,0.33166847]
[1733677217695,0.30018,99939.0,99937.0,0.17968416]
[1733677217943,0.30018,99939.0,99938.0,0.001]
[1733677218387,0.30018,99939.0,99938.0,0.13576789]
[1733677218613,0.30018,99939.0,99938.0,0.46943636]
[1733677218818,0.34592804,99939.0,99938.0,0.003]
[1733677219876,0.34592804,99939.0,99937.0,0.13576789]
[1733677220289,0.34592804,99939.0,99938.0,0.001]
[1733677220735,0.34592804,99939.0,99938.0,0.002]
[1733677220945,0.34592804,99939.0,99938.0,0.001]
[1733677221329,0.30018,99939.0,99938.0,0.001]
[1733677221596,0.30018,99939.0,99938.0,0.18068416]
[1733677221815,0.30018,99939.0,99938.0,0.30988392]
[1733677222057,0.0008655,99960.0,99939.0,0.377409]
[1733677222240,0.0008655,99960.0,99939.0,0.70899321]
[1733677222932,0.04574804,99959.0,99939.0,0.70899321]
[1733677224006,0.04574804,99959.0,99939.0,0.71299321]
[1733677224446,0.0018658,99940.0,99939.0,0.72199321]
[1733677224643,0.0018658,99940.0,99939.0,0.94637549]
[1733677224853,0.0018658,99940.0,99939.0,0.72199321]
[1733677227316,0.0018658,99940.0,99939.0,0.94637549]
[1733677227546,0.0018658,99940.0,99939.0,0.72199321]
[1733677231216,0.0018658,99940.0,99939.0,0.72131801]
[1733677231576,0.0018658,99940.0,99939.0,0.90058259]
[1733677231778,0.0018658,99940.0,99939.0,0.84434752]
[1733677232178,0.0008655,99960.0,99959.0,0.330073]
[1733677232396,0.0008655,99960.0,99959.0,0.410973]
[1733677233381,0.00099157,99960.0,99959.0,0.50153554]
[1733677234000,0.00099157,99960.0,99959.0,0.411973]
[1733677234202,0.00099157,99960.0,99959.0,0.412973]
[1733677234504,0.00099157,99960.0,99959.0,0.5025113]
[1733677234702,0.00099157,99960.0,99959.0,0.412973]
[1733677235003,0.00099157,99960.0,99959.0,0.332073]
[1733677237195,0.04869883,99972.0,99969.0,0.180055]
[1733677237350,0.04869883,99972.0,99969.0,0.18018107]
[1733677238924,0.0038657,99970.0,99969.0,0.18018107]
[1733677239171,0.0048657,99970.0,99969.0,0.18018107]
[1733677241351,0.00155207,99970.0,99969.0,0.18018107]
[1733677242729,0.04574804,99975.0,99973.0,0.180048]
[1733677243874,0.04869883,99974.0,99973.0,0.180048]
[1733677244322,0.04574804,99975.0,99973.0,0.182048]
[1733677244539,0.04869883,99974.0,99973.0,0.182048]
[1733677244969,0.04869883,99974.0,99973.0,0.002]
[1733677245166,0.04869883,99974.0,99973.0,0.007]
[1733677245385,0.04869883,99974.0,99973.0,0.005]
[1733677245586,0.04869883,99974.0,99969.0,0.18018107]
[1733677245907,0.04869883,99974.0,99973.0,0.002]
[1733677246111,0.04869883,99974.0,99973.0,0.007]
[1733677246744,0.04839865,99974.0,99973.0,0.005]
[1733677247215,0.09414669,99974.0,99973.0,0.005]
[1733677247418,0.22464669,99974.0,99973.0,0.005]
[1733677248504,0.04574804,99970.0,99969.0,0.00212607]
[1733677248698,0.2770762,99970.0,99969.0,0.00012607]
[1733677249967,0.2780762,99970.0,99969.0,0.00012607]
[1733677251462,0.3266762,99970.0,99969.0,0.00012607]
[1733677252747,0.3275418,99970.0,99969.0,0.00012607]
[1733677256930,0.3775418,99970.0,99969.0,0.00012607]
[1733677258158,0.3765418,99970.0,99969.0,0.00012607]
[1733677258453,0.3795418,99970.0,99969.0,0.00012607]
[1733677258653,0.3785418,99970.0,99969.0,0.00012607]
[1733677258868,0.3755418,99970.0,99969.0,0.00012607]
[1733677259000,0.3815418,99970.0,99969.0,0.00112607]
[1733677259403,0.3785418,99970.0,99969.0,0.00012607]
[1733677259814,0.3845418,99970.0,99969.0,0.00112607]
[1733677261240,0.39476314,99970.0,99969.0,0.00112607]
[1733677262201,0.41776314,99970.0,99969.0,0.00112607]
[1733677262360,0.71785314,99970.0,99969.0,0.00112607]
[1733677262562,0.64485314,99970.0,99969.0,0.00112607]
[1733677262967,0.5991051,99970.0,99969.0,0.00112607]
[1733677263146,0.64485314,99970.0,99969.0,0.00112607]
[1733677263562,0.58288376,99970.0,99969.0,0.00012607]
[1733677263767,0.5780318,99970.0,99969.0,0.00012607]
[1733677263981,0.5840318,99970.0,99969.0,0.00112607]
[1733677264192,0.5051318,99970.0,99969.0,0.00112607]
[1733677265019,0.4991318,99970.0,99969.0,0.00012607]
[1733677265260,0.5011318,99970.0,99969.0,0.00112607]
[1733677265484,0.5051318,99970.0,99969.0,0.00112607]
[1733677265699,0.4991318,99970.0,99969.0,0.00012607]
[1733677265896,0.5051318,99970.0,99969.0,0.00012607]
[1733677266501,0.4991318,99970.0,99969.0,0.00012607]
[1733677266704,0.5011318,99970.0,99969.0,0.00012607]
[1733677266916,0.4971318,99970.0,99969.0,0.00012607]
[1733677267385,0.4981318,99970.0,99969.0,0.00012607]
[1733677268625,0.5786318,99970.0,99969.0,0.00012607]
[1733677271896,0.6016318,99970.0,99969.0,0.00012607]
[1733677272103,0.5786318,99970.0,99969.0,0.00012607]
[1733677272305,0.53288376,99970.0,99969.0,0.00012607]
[1733677272531,0.4981318,99970.0,99969.0,0.00012607]
[1733677272750,0.45238376,99970.0,99969.0,0.00012607]
[1733677272927,0.4981318,99970.0,99969.0,0.00012607]
[1733677275781,0.3039556,99970.0,99969.0,0.08132607]
[1733677275975,0.30608301,99970.0,99969.0,0.08132607]
[1733677276204,0.3029556,99970.0,99969.0,0.41251459]
[1733677276418,0.3029556,99970.0,99969.0,0.08132607]
[1733677277108,0.3029556,99970.0,99969.0,0.21789804]
[1733677277308,0.3029556,99970.0,99969.0,0.08332607]
[1733677277679,0.3029556,99970.0,99969.0,0.08132607]
[1733677277888,0.3009556,99970.0,99969.0,0.08132607]
[1733677278716,0.3009556,99970.0,99969.0,0.08832607]
[1733677278925,0.3009556,99970.0,99969.0,0.09132607]
[1733677279137,0.3009556,99970.0,99969.0,0.18102554]
[1733677279980,0.3009556,99970.0,99969.0,0.09132607]
[1733677280742,0.3009556,99970.0,99969.0,0.01012607]
[1733677283347,0.34670364,99970.0,99969.0,0.01012607]
[1733677283763,0.44673315,99970.0,99969.0,0.01012607]
[1733677284672,0.4951318,99970.0,99969.0,0.00312607]
[1733677284886,0.4951318,99970.0,99969.0,0.00512607]
[1733677285101,0.4951318,99970.0,99969.0,0.00212607]
[1733677285316,0.4951318,99970.0,99969.0,0.00312607]
[1733677287383,0.4951318,99970.0,99969.0,0.00112607]
[1733677287589,0.4961318,99970.0,99969.0,0.00112607]
[1733677288023,0.4951318,99970.0,99969.0,0.00012607]
[1733677288223,0.4961318,99970.0,99969.0,0.00012607]
[1733677288350,0.4971318,99970.0,99969.0,0.00012607]
[1733677288756,0.4961318,99970.0,99969.0,0.00012607]
[1733677289170,0.4971318,99970.0,99969.0,0.00012607]
[1733677290667,0.5779318,99970.0,99969.0,0.00012607]
[1733677292784,0.6009318,99970.0,99969.0,0.00012607]
[1733677293001,0.6507318,99970.0,99969.0,0.00012607]
[1733677294718,0.04574804,99941.0,99937.0,0.23977291]
[1733677294883,0.04574804,99941.0,99936.0,0.15]
[1733677295962,0.34583804,99941.0,99937.0,0.005]
[1733677297184,0.34583804,99941.0,99935.0,0.180116]
[1733677297389,0.34683804,99941.0,99937.0,0.009]
[1733677298134,0.52694504,99941.0,99936.0,0.005]
[1733677298383,0.04574804,99931.0,99930.0,0.0017312]
[1733677299091,0.34583804,99931.0,99930.0,0.0017312]
[1733677299804,0.34583804,99931.0,99930.0,0.00230491]
[1733677300749,0.39423669,99931.0,99930.0,0.00230491]
[1733677301007,0.4942662,99931.0,99930.0,0.00230491]
[1733677301228,0.4942662,99931.0,99930.0,0.00330491]
[1733677301492,0.4952662,99931.0,99930.0,0.01230491]
[1733677302027,0.4942662,99931.0,99930.0,0.00330491]
[1733677302510,0.4942662,99931.0,99930.0,0.00530491]
[1733677305692,0.39423669,99931.0,99930.0,0.00530491]
[1733677306138,0.34848865,99931.0,99930.0,0.00530491]
[1733677306342,0.34848865,99931.0,99930.0,0.08600491]
[1733677306779,0.34848865,99931.0,99930.0,0.00530491]
[1733677307643,0.34848865,99931.0,99930.0,0.18543091]
[1733677308770,0.34848865,99931.0,99930.0,0.00530491]
[1733677310933,0.39423669,99931.0,99930.0,0.00530491]
[1733677314203,0.39423669,99931.0,99930.0,0.00430491]
[1733677314822,0.39423669,99931.0,99930.0,0.00230491]
[1733677314823,0.4942662,99931.0,99930.0,0.00230491]
[1733677316213,0.4962662,99931.0,99930.0,0.00230491]
[1733677316678,0.4952662,99931.0,99930.0,0.00230491]
[1733677320656,0.4972662,99931.0,99930.0,0.00230491]
[1733677321392,0.5787662,99931.0,99930.0,0.00230491]
[1733677321610,0.5777662,99931.0,99930.0,0.00230491]
[1733677321869,0.5757662,99931.0,99930.0,0.00230491]
[1733677322089,0.5817662,99931.0,99930.0,0.00230491]
[1733677322360,0.5777662,99931.0,99930.0,0.00230491]
[1733677322590,0.5817662,99931.0,99930.0,0.00230491]
[1733677323504,0.6268662,99931.0,99930.0,0.00230491]
[1733677323935,0.6498662,99931.0,99930.0,0.00230491]
[1733677325420,0.74968154,99931.0,99930.0,0.00230491]
[1733677325804,0.6498662,99931.0,99930.0,0.00230491]
[1733677326806,0.6998662,99931.0,99930.0,0.00230491]
[1733677329072,0.6978662,99931.0,99930.0,0.00230491]
[1733677329274,0.6938662,99931.0,99930.0,0.00230491]
[1733677329483,0.6968662,99931.0,99930.0,0.00230491]
[1733677329687,0.7038662,99931.0,99930.0,0.00330491]
[1733677329913,0.9038662,99931.0,99930.0,0.00330491]
[1733677330347,0.9038662,99931.0,99910.0,0.00173]
[1733677330348,0.27430669,99911.0,99910.0,0.00173]
[1733677330567,0.4546362,99911.0,99910.0,0.00173]
[1733677330763,0.4546362,99911.0,99910.0,0.00189068]
[1733677330964,0.4776362,99911.0,99910.0,0.00189068]
[1733677331397,0.5276362,99911.0,99900.0,0.001731]
[1733677331612,0.30887665,99901.0,99900.0,0.001731]
[1733677331813,0.40890616,99901.0,99900.0,0.00190293]
[1733677332640,0.40890616,99901.0,99900.0,0.00290293]
[1733677332805,0.40890616,99901.0,99900.0,0.00190293]
[1733677333012,0.45530616,99901.0,99900.0,0.00190293]
[1733677333177,0.45530616,99901.0,99900.0,0.00490293]
[1733677334240,0.45530616,99901.0,99900.0,0.00590293]
[1733677334632,0.5010542,99901.0,99900.0,0.00590293]
[1733677334798,0.5240542,99901.0,99900.0,0.00590293]
[1733677335004,0.8241442,99901.0,99900.0,0.00590293]
[1733677335201,0.84459713,99901.0,99900.0,0.00590293]
[1733677336054,0.89459713,99901.0,99900.0,0.00590293]
[1733677336616,0.89459713,99901.0,99900.0,0.00290293]
[1733677337013,0.89559713,99901.0,99900.0,0.00290293]
[1733677337227,0.89559713,99901.0,99900.0,0.00190293]
[1733677337702,0.90566921,99901.0,99900.0,0.00190293]
[1733677337913,1.00548455,99901.0,99900.0,0.00190293]
[1733677338121,1.00448455,99901.0,99900.0,0.00190293]
[1733677338326,1.00948455,99901.0,99900.0,0.00190293]
[1733677338534,1.01848455,99901.0,99900.0,0.00290293]
[1733677338757,1.00948455,99901.0,99900.0,0.00190293]
[1733677339187,1.01848455,99901.0,99900.0,0.00290293]
[1733677339399,0.91866921,99901.0,99900.0,0.00290293]
[1733677341101,0.91366921,99901.0,99900.0,0.00290293]
[1733677341531,0.91866921,99901.0,99900.0,0.00290293]
[1733677341735,0.90966921,99901.0,99900.0,0.00190293]
[1733677342152,0.91866921,99901.0,99900.0,0.00290293]
[1733677343008,0.90966921,99901.0,99900.0,0.00190293]
[1733677343229,0.91366921,99901.0,99900.0,0.00290293]
[1733677343466,0.91766921,99901.0,99900.0,0.00290293]
[1733677354879,0.96144776,99901.0,99900.0,0.00290293]
[1733677355108,0.91766921,99901.0,99900.0,0.00290293]
[1733677360792,1.06766921,99901.0,99900.0,0.00290293]
[1733677361244,0.27437869,99871.0,99870.0,0.0017308]
[1733677361440,0.3744082,99871.0,99870.0,0.00188593]
[1733677361652,0.6744982,99871.0,99870.0,0.00188593]
[1733677362718,0.6754982,99871.0,99870.0,0.00188593]
[1733677362926,0.6984982,99871.0,99870.0,0.00188593]
[1733677363140,0.6974982,99871.0,99870.0,0.00188593]
[1733677363357,0.71782931,99871.0,99870.0,0.00188593]
[1733677363568,0.71982931,99871.0,99870.0,0.00188593]
[1733677363986,0.73093174,99871.0,99870.0,0.00188593]
[1733677364188,0.72993174,99871.0,99870.0,0.00188593]
[1733677364638,0.72793174,99871.0,99870.0,0.00188593]
[1733677364841,0.73193174,99871.0,99870.0,0.00188593]
[1733677365258,0.73293174,99871.0,99870.0,0.00188593]
[1733677365648,0.56411076,99871.0,99850.0,0.00173]
[1733677365864,0.22864865,99861.0,99850.0,0.00173]
[1733677366075,0.62876816,99861.0,99850.0,0.00173]
[1733677369054,0.63076816,99861.0,99850.0,0.00173]
[1733677369523,0.63176816,99861.0,99850.0,0.00173]
[1733677370397,0.4952662,99861.0,99853.0,0.180264]
[1733677370623,0.4982662,99861.0,99858.0,0.258755]
[1733677370858,0.4972662,99861.0,99860.0,0.047531]
[1733677371088,0.34983804,99861.0,99860.0,0.047531]
[1733677371348,0.39823669,99861.0,99860.0,0.047531]
[1733677371580,0.39423669,99861.0,99860.0,0.047531]
[1733677372495,0.30009,99861.0,99860.0,0.047531]
[1733677372712,0.30009,99861.0,99860.0,0.048531]
[1733677372931,0.30009,99861.0,99860.0,0.05874359]
[1733677373576,0.30009,99861.0,99860.0,0.19324138]
[1733677373792,0.30009,99861.0,99860.0,0.51450762]
[1733677374007,0.34583804,99861.0,99860.0,0.51450762]
[1733677374225,0.34583804,99861.0,99860.0,0.1383313]
[1733677374467,0.34583804,99861.0,99860.0,0.048531]
[1733677374885,0.34583804,99861.0,99860.0,0.1383313]
[1733677375096,0.34583804,99861.0,99860.0,0.048531]
[1733677375523,0.30009,99861.0,99860.0,0.048531]
[1733677375769,0.30009,99861.0,99860.0,0.1383313]
[1733677375988,0.30009,99861.0,99860.0,0.04644469]
[1733677376206,0.30009,99861.0,99860.0,0.13628184]
[1733677376418,0.30009,99861.0,99860.0,0.27494469]
[1733677376849,0.30009,99861.0,99860.0,0.8307144]
[1733677377062,0.04574804,99872.0,99860.0,0.78623914]
[1733677377291,0.04574804,99872.0,99871.0,0.258732]
[1733677378602,0.04674804,99872.0,99871.0,0.258732]
[1733677378839,0.04674804,99872.0,99871.0,0.261732]
[1733677381147,0.04674804,99872.0,99871.0,0.27154797]
[1733677382534,0.04674804,99872.0,99871.0,0.261732]
[1733677383191,0.001,99872.0,99871.0,0.261732]
[1733677383423,0.001,99872.0,99871.0,0.311232]
[1733677383639,0.001,99872.0,99871.0,0.92765238]
[1733677383846,0.001,99872.0,99871.0,0.89289527]
[1733677384064,0.001,99872.0,99871.0,0.89449662]
[1733677384274,0.04574804,99904.0,99903.0,0.180174]
[1733677384720,0.04591996,99904.0,99903.0,0.180174]
[1733677386010,0.04591996,99904.0,99901.0,0.180178]
[1733677386254,0.04574804,99902.0,99901.0,0.180178]
[1733677386681,0.04574804,99892.0,99890.0,0.180196]
[1733677386895,0.04574804,99891.0,99890.0,0.180196]
[1733677387099,0.10002951,99901.0,99890.0,0.180196]
[1733677387100,0.04574804,99892.0,99890.0,0.180196]
[1733677387357,0.10002951,99901.0,99900.0,0.18018]
[1733677387581,0.00017192,99904.0,99902.0,0.180176]
[1733677387804,0.04574804,99903.0,99902.0,0.180176]
[1733677388017,0.04574804,99903.0,99900.0,0.18018]
[1733677388227,0.00017192,99904.0,99900.0,0.36036]
[1733677388228,0.04574804,99901.0,99900.0,0.36036]
[1733677388440,0.00017192,99904.0,99900.0,0.36036]
[1733677388703,0.00017192,99904.0,99902.0,0.180176]
[1733677388924,0.00017192,99904.0,99902.0,0.18117687]
[1733677389135,0.00017192,99904.0,99902.0,0.180176]
[1733677390639,0.00017192,99904.0,99902.0,0.184176]
[1733677390849,0.00017192,99904.0,99902.0,0.186176]
[1733677395825,0.00017192,99904.0,99902.0,0.184176]
[1733677396271,0.00017192,99904.0,99902.0,0.186176]
[1733677396706,0.00017192,99904.0,99902.0,0.182176]
[1733677397558,0.04591996,99904.0,99902.0,0.006]
[1733677397755,0.14577755,99903.0,99902.0,0.006]
[1733677398448,0.14577755,99903.0,99902.0,0.002]
[1733677398667,0.14577755,99903.0,99902.0,0.005]
[1733677398888,0.14577755,99903.0,99896.0,0.180186]
[1733677399311,0.14577755,99903.0,99902.0,0.001]
[1733677399746,0.04574804,99901.0,99900.0,0.360357]
[1733677399973,0.00017192,99904.0,99900.0,0.360357]
[1733677399974,0.00017192,99904.0,99902.0,0.180176]
[1733677400188,0.00017192,99904.0,99902.0,0.181176]
[1733677400616,0.00017192,99904.0,99902.0,0.184176]
[1733677400818,0.00017192,99904.0,99902.0,0.180176]
[1733677401269,0.00017192,99904.0,99902.0,0.183176]
[1733677402970,0.00017192,99904.0,99902.0,0.184176]
[1733677407989,0.00017192,99904.0,99902.0,0.18517683]
[1733677408215,0.00017192,99904.0,99902.0,0.184176]
[1733677411523,0.00017192,99904.0,99903.0,0.19890084]
[1733677411739,0.000866,99910.0,99909.0,0.330163]
[1733677411950,0.000866,99910.0,99909.0,0.411863]
[1733677412180,0.000866,99910.0,99909.0,0.41346435]
[1733677412391,0.000866,99910.0,99909.0,0.60069908]
[1733677412605,0.0008657,99940.0,99909.0,0.60069908]
[1733677412606,0.0008657,99940.0,99918.0,0.00160135]
[1733677412825,0.0008657,99940.0,99939.0,0.180109]
[1733677413283,0.0008657,99940.0,99939.0,0.1811095]
[1733677413504,0.0008657,99940.0,99939.0,0.3311095]
[1733677413717,0.0008657,99940.0,99939.0,0.330109]
[1733677414157,0.00743951,99940.0,99939.0,0.331109]
[1733677414838,0.05318755,99940.0,99939.0,0.001]
[1733677415490,0.05318755,99940.0,99939.0,0.003]
[1733677415950,0.05318755,99940.0,99939.0,0.001]
[1733677416167,0.04718755,99940.0,99938.0,0.18011]
[1733677416376,0.04718755,99940.0,99939.0,0.002]
[1733677416585,0.04718755,99940.0,99939.0,0.006]
[1733677417205,0.04718755,99940.0,99939.0,0.002]
[1733677417665,0.14721706,99940.0,99939.0,0.004]
[1733677417881,0.19561571,99940.0,99939.0,0.004]
[1733677418981,0.19561571,99940.0,99939.0,0.006]
[1733677419196,0.19561571,99940.0,99939.0,0.002]
[1733677419410,0.180125,99931.0,99917.0,0.15]
[1733677419614,0.14842816,99930.0,99916.0,0.18015]
[1733677419846,0.14842816,99930.0,99920.0,0.180143]
[1733677420272,0.14842816,99930.0,99924.0,0.180135]
[1733677421146,0.14942816,99930.0,99924.0,0.180135]
[1733677422455,0.14842816,99930.0,99924.0,0.180135]
[1733677422878,0.001,99930.0,99924.0,0.180135]
[1733677423100,0.001,99930.0,99929.0,0.180127]
[1733677423316,0.001,99930.0,99929.0,0.330127]
[1733677423976,0.00143951,99940.0,99930.0,0.15]
[1733677424195,0.00143951,99940.0,99939.0,0.180109]
[1733677425538,0.00143951,99940.0,99939.0,0.183109]
[1733677427271,0.00243951,99940.0,99939.0,0.189109]
[1733677427952,0.00243951,99940.0,99939.0,0.339109]
[1733677428375,0.00243951,99940.0,99939.0,0.42872501]
[1733677428611,0.00243951,99940.0,99939.0,0.42874151]
[1733677429575,0.00243951,99940.0,99939.0,0.339109]
[1733677430753,0.00243951,99940.0,99939.0,0.416609]
[1733677431266,0.00243951,99940.0,99939.0,0.50624614]
[1733677431514,0.00243951,99940.0,99939.0,0.416609]
[1733677431759,0.04574804,99963.0,99957.0,0.180077]
[1733677432006,0.04574804,99963.0,99962.0,0.180068]
[1733677432231,0.04574804,99966.0,99949.0,0.180091]
[1733677432461,0.04574804,99969.0,99968.0,0.180057]
[1733677434435,0.05174804,99969.0,99968.0,0.181057]
[1733677434898,0.05474804,99969.0,99968.0,0.181057]
[1733677449559,0.15477755,99969.0,99968.0,0.001]
[1733677449788,0.23547755,99969.0,99968.0,0.001]
[1733677450001,0.13544804,99969.0,99968.0,0.001]
[1733677450216,0.05474804,99969.0,99968.0,0.001]
[1733677453520,0.009,99969.0,99968.0,0.001]
[1733677454975,0.006,99969.0,99968.0,0.001]
[1733677455159,0.006,99969.0,99968.0,0.002]
[1733677455358,0.00103774,99970.0,99969.0,0.180055]
[1733677456943,0.00103774,99970.0,99969.0,0.181055]
[1733677457449,0.00103774,99970.0,99969.0,0.184055]
[1733677463430,0.00103774,99970.0,99969.0,0.18505523]
[1733677463654,0.00103774,99970.0,99969.0,0.21863495]
[1733677463873,0.00103774,99970.0,99969.0,0.21763476]
[1733677465722,0.00103774,99970.0,99969.0,0.36763476]
[1733677465937,0.00103774,99970.0,99969.0,0.50179326]
[1733677466153,0.0008655,99980.0,99979.0,0.180037]
[1733677467086,0.0008655,99980.0,99979.0,0.29371687]
[1733677467336,0.0008655,99980.0,99979.0,0.90806389]
[1733677467547,0.0008655,99980.0,99979.0,0.87362102]
[1733677467762,0.0018655,99980.0,99979.0,0.92212102]
[1733677468193,0.0008655,99980.0,99979.0,0.95331663]
[1733677468403,0.0008655,99980.0,99979.0,0.95334508]
[1733677468604,0.0028655,99980.0,99979.0,0.92314947]
[1733677468788,0.0008655,99980.0,99979.0,0.92314947]
[1733677469133,0.0008655,99980.0,99979.0,0.92414947]
[1733677470326,0.0008655,99980.0,99979.0,0.92840143]
[1733677471564,0.0008655,99980.0,99979.0,0.93000278]
[1733677474154,0.0008655,99980.0,99979.0,0.92833803]
[1733677474381,0.0008655,99980.0,99979.0,0.92893938]
[1733677474813,0.0008655,99980.0,99979.0,0.93193938]
[1733677475010,0.0008655,99980.0,99979.0,0.94093938]
[1733677475432,5e-07,99980.0,99979.0,0.94840681]
[1733677477001,5e-07,99980.0,99979.0,0.94840545]
[1733677477405,5e-07,99980.0,99979.0,0.94840444]
[1733677479028,5e-07,99980.0,99979.0,0.94415248]
[1733677479859,0.0008655,99990.0,99984.0,0.00160135]
[1733677480009,0.0008655,99990.0,99989.0,0.330019]
[1733677480208,0.0008655,99990.0,99989.0,0.37106382]
[1733677480408,0.0008655,99990.0,99989.0,0.70190362]
[1733677480613,0.0008655,99990.0,99989.0,0.50542903]
[1733677480935,0.0008655,99990.0,99989.0,0.37106382]
[1733677481351,0.12684804,100000.0,99999.0,0.180001]
[1733677481521,0.12702005,100000.0,99999.0,0.18746606]
[1733677483819,0.12702005,100000.0,99999.0,0.18846606]
[1733677484530,0.12702005,100000.0,99999.0,0.18746606]
[1733677484782,0.12702005,100000.0,99999.0,0.19046606]
[1733677485041,0.17572005,100000.0,99999.0,0.19046606]
[1733677485553,0.49834821,100000.0,99999.0,0.01046506]
[1733677485768,0.49834821,100000.0,99999.0,0.003]
[1733677485979,0.49834821,100000.0,99999.0,0.004]
[1733677486198,0.49834821,100000.0,99999.0,0.001]
[1733677486427,0.0753,99985.0,99984.0,0.007468]
[1733677486676,0.0753,99985.0,99983.0,0.007468]
[1733677486677,0.04574804,99984.0,99983.0,0.007468]
[1733677486885,0.04574804,99984.0,99981.0,0.007468]
[1733677487104,0.04574804,99984.0,99978.0,0.007468]
[1733677487533,0.04574804,99981.0,99978.0,0.007468]
[1733677488959,0.04574804,99981.0,99978.0,0.008468]
[1733677490175,0.04574804,99981.0,99978.0,0.009468]
[1733677491929,0.04574804,99981.0,99979.0,0.180037]
[1733677492410,0.04574804,99981.0,99980.0,0.007468]
[1733677493031,0.04574804,99981.0,99980.0,0.00747729]
[1733677493850,0.04574804,99980.0,99979.0,0.002]
[1733677494696,0.09414669,99980.0,99979.0,0.002]
[1733677494980,0.04574804,99971.0,99970.0,0.0017298]
[1733677496375,0.04574804,99971.0,99970.0,0.0077298]
[1733677496610,0.04574804,99971.0,99970.0,0.0107298]
[1733677497330,0.04574804,99971.0,99970.0,0.0182083]
[1733677500676,0.12174804,99971.0,99970.0,0.0182083]
[1733677500957,0.12174804,99971.0,99970.0,0.0107298]
[1733677501659,0.076,99980.0,99979.0,0.180037]
[1733677502067,0.076,99980.0,99975.0,0.180044]
[1733677502271,0.076,99980.0,99977.0,0.180041]
[1733677502717,0.076,99980.0,99977.0,0.360082]
[1733677503135,0.076,99980.0,99979.0,0.002]
[1733677504435,0.076,99980.0,99979.0,0.003]
[1733677504904,0.076,99980.0,99979.0,0.001]
[1733677505672,0.04574804,99981.0,99980.0,0.180036]
[1733677506901,0.04574804,99981.0,99980.0,0.181036]
[1733677508278,0.04574804,99981.0,99980.0,0.182036]
[1733677518082,0.12854804,99981.0,99980.0,0.182036]
[1733677521651,0.12854804,99981.0,99980.0,0.002]
[1733677524058,0.27767755,99981.0,99980.0,0.002]
[1733677524262,0.3260762,99981.0,99980.0,0.002]
[1733677527275,0.3260762,99981.0,99980.0,0.001]
[1733677527495,0.3300762,99981.0,99980.0,0.001]
[1733677527975,0.180052,99971.0,99970.0,0.0017298]
[1733677528215,0.4533282,99971.0,99970.0,0.0017298]
[1733677528945,0.4994282,99971.0,99970.0,0.0017298]
[1733677529183,0.5224282,99971.0,99970.0,0.0017298]